[Event "Late-Titled-Tuesday-Blitz-November-28-2023"]
[Site "Chess.com"]
[Date "2023.11.28"]
[Round "6"]
[White "Hikaru"]
[Black "Oleksandr_Bortnyk"]
[Result "0-1"]
[WhiteElo "3214"]
[BlackElo "3066"]
[TimeControl "180+1"]
[EndTime "15:06:21 PST"]
[Termination "Oleksandr_Bortnyk won by resignation"]

1. g3 {[%clk 0:02:58.5]} 1... Nf6 {[%clk 0:02:56.9]} 2. Bg2 {[%clk 0:02:58]}
2... d5 {[%clk 0:02:49.3]} 3. d3 {[%clk 0:02:56.8]} 3... c6 {[%clk 0:02:40.7]}
4. Nd2 {[%clk 0:02:55.4]} 4... e5 {[%clk 0:02:33.4]} 5. e4 {[%clk 0:02:54.8]}
5... Bd6 {[%clk 0:02:27.1]} 6. Ngf3 {[%clk 0:02:54.2]} 6... O-O {[%clk 0:02:27]}
7. O-O {[%clk 0:02:54.3]} 7... a5 {[%clk 0:02:23.5]} 8. Re1 {[%clk 0:02:53.3]}
8... Re8 {[%clk 0:02:22.4]} 9. a4 {[%clk 0:02:33.9]} 9... Na6 {[%clk 0:02:20.6]}
10. b3 {[%clk 0:02:34.1]} 10... Nb4 {[%clk 0:02:19.2]} 11. Bb2 {[%clk
0:02:34.3]} 11... Qc7 {[%clk 0:02:10.6]} 12. Bf1 {[%clk 0:02:34]} 12... d4
{[%clk 0:02:01.4]} 13. Nc4 {[%clk 0:02:29.2]} 13... Be6 {[%clk 0:01:54.4]} 14.
Nxd6 {[%clk 0:02:22.7]} 14... Qxd6 {[%clk 0:01:55.3]} 15. h3 {[%clk 0:02:19.7]}
15... Nd7 {[%clk 0:01:47.6]} 16. Ng5 {[%clk 0:02:17.7]} 16... b5 {[%clk
0:01:43.8]} 17. Qd2 {[%clk 0:02:11.2]} 17... Nc5 {[%clk 0:01:40]} 18. Nxe6
{[%clk 0:02:09.3]} 18... fxe6 {[%clk 0:01:32.9]} 19. h4 {[%clk 0:02:03.6]} 19...
Rf8 {[%clk 0:01:27.1]} 20. Bh3 {[%clk 0:02:03.2]} 20... bxa4 {[%clk 0:01:27.5]}
21. bxa4 {[%clk 0:02:03.3]} 21... Ra7 {[%clk 0:01:25.5]} 22. Re2 {[%clk
0:01:55.2]} 22... Rb7 {[%clk 0:01:16.7]} 23. Bc1 {[%clk 0:01:53.4]} 23... Rfb8
{[%clk 0:00:56.4]} 24. Kh2 {[%clk 0:01:47]} 24... Rf8 {[%clk 0:00:47.6]} 25. Kg2
{[%clk 0:01:45.7]} 25... Rbf7 {[%clk 0:00:47.6]} 26. Ba3 {[%clk 0:01:37.5]}
26... Rb7 {[%clk 0:00:46.5]} 27. Bc1 {[%clk 0:01:34.3]} 27... Rbf7 {[%clk
0:00:46.4]} 28. Bg4 {[%clk 0:01:33.7]} 28... Rb8 {[%clk 0:00:42.8]} 29. Qd1
{[%clk 0:01:28.8]} 29... Rfb7 {[%clk 0:00:37.9]} 30. Bd2 {[%clk 0:01:22.3]}
30... Rf7 {[%clk 0:00:32.4]} 31. Bh5 {[%clk 0:01:18.2]} 31... Rfb7 {[%clk
0:00:31.9]} 32. Bf3 {[%clk 0:01:17.1]} 32... Rf8 {[%clk 0:00:32.4]} 33. Bg4
{[%clk 0:01:17.6]} 33... Rbf7 {[%clk 0:00:31.5]} 34. Bh3 {[%clk 0:01:04.6]}
34... Rb7 {[%clk 0:00:30.1]} 35. f4 {[%clk 0:00:58.8]} 35... exf4 {[%clk
0:00:29.5]} 36. gxf4 {[%clk 0:00:59.2]} 36... Rxf4 {[%clk 0:00:24.5]} 37. Bxf4
{[%clk 0:00:58.1]} 37... Qxf4 {[%clk 0:00:25.4]} 38. Qe1 {[%clk 0:00:52.5]}
38... Rf7 {[%clk 0:00:24.1]} 39. Qg3 {[%clk 0:00:50.1]} 39... Qxg3+ {[%clk
0:00:20.6]} 40. Kxg3 {[%clk 0:00:51]} 40... e5 {[%clk 0:00:21.4]} 41. h5 {[%clk
0:00:47.5]} 41... g6 {[%clk 0:00:18.1]} 42. h6 {[%clk 0:00:46]} 42... Rf6 {[%clk
0:00:17.9]} 43. Ra3 {[%clk 0:00:39.7]} 43... Kf7 {[%clk 0:00:15.9]} 44. Rd2
{[%clk 0:00:37]} 44... g5 {[%clk 0:00:11.2]} 45. Ra1 {[%clk 0:00:30.3]} 45...
Rxh6 {[%clk 0:00:11.5]} 46. Rf2+ {[%clk 0:00:30.7]} 46... Rf6 {[%clk 0:00:11.5]}
47. Bf5 {[%clk 0:00:31.3]} 47... Kg7 {[%clk 0:00:11.7]} 48. Rh2 {[%clk
0:00:31.2]} 48... h6 {[%clk 0:00:10.9]} 49. Kg4 {[%clk 0:00:31.3]} 49... Rd6
{[%clk 0:00:09.3]} 50. Rc1 {[%clk 0:00:31.2]} 50... Rf6 {[%clk 0:00:08]} 51. Rb1
{[%clk 0:00:24.5]} 51... Kf7 {[%clk 0:00:07.8]} 52. Kg3 {[%clk 0:00:20.5]} 52...
Kg7 {[%clk 0:00:07.5]} 53. Rhh1 {[%clk 0:00:20.8]} 53... Ne6 {[%clk 0:00:05.4]}
54. Rhc1 {[%clk 0:00:19.6]} 54... Nf4 {[%clk 0:00:05.6]} 55. Kf3 {[%clk
0:00:17.3]} 55... h5 {[%clk 0:00:05.8]} 56. c3 {[%clk 0:00:17.9]} 56... g4+
{[%clk 0:00:06.1]} 57. Kg3 {[%clk 0:00:18.6]} 57... Ne2+ {[%clk 0:00:05.9]} 58.
Kh4 {[%clk 0:00:19.3]} 58... dxc3 {[%clk 0:00:04.4]} 59. Re1 {[%clk 0:00:19.9]}
59... c2 {[%clk 0:00:05]} 60. Ra1 {[%clk 0:00:20.1]} 60... c1=Q {[%clk 0:00:05]}
61. Raxc1 {[%clk 0:00:20.5]} 61... Nxc1 {[%clk 0:00:05.9]} 62. Rxc1 {[%clk
0:00:21.2]} 62... Nxd3 {[%clk 0:00:06.7]} 63. Rd1 {[%clk 0:00:21.7]} 63... Rd6
{[%clk 0:00:06.6]} 64. Kg5 {[%clk 0:00:18.3]} 64... Rd4 {[%clk 0:00:04.8]} 65.
Rh1 {[%clk 0:00:17.2]} 65... Nf2 {[%clk 0:00:03.2]} 66. Rxh5 {[%clk 0:00:16.6]}
66... Nxe4+ {[%clk 0:00:03.7]} 67. Kh4 {[%clk 0:00:08.9]} 67... Nf6 {[%clk
0:00:04.3]} 68. Rg5+ {[%clk 0:00:09]} 68... Kf7 {[%clk 0:00:05.1]} 69. Bc2
{[%clk 0:00:08.1]} 69... Ke6 {[%clk 0:00:02.9]} 70. Bb3+ {[%clk 0:00:08.4]}
70... Kd6 {[%clk 0:00:03.3]} 71. Rg6 {[%clk 0:00:09]} 71... Rf4 {[%clk 0:00:04]}
72. Rg7 {[%clk 0:00:06.5]} 72... Kc5 {[%clk 0:00:04]} 73. Ra7 {[%clk 0:00:06.3]}
73... Kb4 {[%clk 0:00:04.1]} 74. Rb7+ {[%clk 0:00:07]} 74... Kc3 {[%clk
0:00:04.2]} 75. Be6 {[%clk 0:00:07.4]} 75... Rxa4 {[%clk 0:00:03.6]} 76. Rb6
{[%clk 0:00:08.1]} 76... Rd4 {[%clk 0:00:02.5]} 77. Rxc6+ {[%clk 0:00:08.4]}
77... Kd2 {[%clk 0:00:03.2]} 78. Bf5 {[%clk 0:00:08.5]} 78... Ne4 {[%clk
0:00:02.8]} 79. Ra6 {[%clk 0:00:08.1]} 79... a4 {[%clk 0:00:02.8]} 80. Bd7
{[%clk 0:00:05.8]} 80... Nc5 {[%clk 0:00:02.8]} 81. Bb5 {[%clk 0:00:06.3]} 81...
Nxa6 {[%clk 0:00:03.1]} 0-1

[Event "Late-Titled-Tuesday-Blitz-November-28-2023"]
[Site "Chess.com"]
[Date "2023.11.28"]
[Round "6"]
[White "Nf3c5"]
[Black "Zavgorodniy_Sergiy"]
[Result "1/2-1/2"]
[WhiteElo "2501"]
[BlackElo "2658"]
[TimeControl "180+1"]
[EndTime "15:06:33 PST"]
[Termination "Game drawn by 50-move rule"]

1. Nf3 {[%clk 0:03:00.9]} 1... d5 {[%clk 0:02:59.6]} 2. c4 {[%clk 0:02:59.5]}
2... e6 {[%clk 0:02:59.6]} 3. e3 {[%clk 0:02:51.9]} 3... dxc4 {[%clk 0:02:59]}
4. Bxc4 {[%clk 0:02:51.3]} 4... Nf6 {[%clk 0:02:59.3]} 5. d4 {[%clk 0:02:45.2]}
5... a6 {[%clk 0:02:59.6]} 6. O-O {[%clk 0:02:43]} 6... b5 {[%clk 0:02:59.4]} 7.
Bd3 {[%clk 0:02:36.2]} 7... Bb7 {[%clk 0:03:00.3]} 8. a4 {[%clk 0:02:36.4]} 8...
b4 {[%clk 0:03:00.8]} 9. b3 {[%clk 0:02:23.7]} 9... Nbd7 {[%clk 0:03:01.7]} 10.
Bb2 {[%clk 0:02:23.7]} 10... c5 {[%clk 0:03:02.4]} 11. Nbd2 {[%clk 0:02:02]}
11... Be7 {[%clk 0:03:02.8]} 12. a5 {[%clk 0:02:00.2]} 12... O-O {[%clk
0:03:02.5]} 13. Nc4 {[%clk 0:01:59.8]} 13... Qc7 {[%clk 0:03:02.8]} 14. Rc1
{[%clk 0:01:58.5]} 14... Rac8 {[%clk 0:03:02.7]} 15. h3 {[%clk 0:01:56.3]} 15...
Rfd8 {[%clk 0:03:02.8]} 16. Qe2 {[%clk 0:01:56.3]} 16... h6 {[%clk 0:03:03.1]}
17. Rfd1 {[%clk 0:01:54.4]} 17... Ne4 {[%clk 0:03:03.3]} 18. Nfe5 {[%clk
0:01:39.4]} 18... Ndf6 {[%clk 0:03:00.6]} 19. Ng4 {[%clk 0:01:28.4]} 19... Nc3
{[%clk 0:02:59.6]} 20. Bxc3 {[%clk 0:01:27.7]} 20... bxc3 {[%clk 0:03:00.5]} 21.
Nb6 {[%clk 0:01:11.9]} 21... Rb8 {[%clk 0:02:54.1]} 22. Rxc3 {[%clk 0:01:09.9]}
22... Nxg4 {[%clk 0:02:53.7]} 23. Qxg4 {[%clk 0:01:09.8]} 23... Qc6 {[%clk
0:02:39.8]} 24. Bf1 {[%clk 0:00:58.9]} 24... Qe4 {[%clk 0:02:29.2]} 25. Qxe4
{[%clk 0:00:48.3]} 25... Bxe4 {[%clk 0:02:30.1]} 26. Rc4 {[%clk 0:00:48.9]}
26... Bd5 {[%clk 0:02:27.2]} 27. Nxd5 {[%clk 0:00:35.9]} 27... exd5 {[%clk
0:02:28.1]} 28. Rc3 {[%clk 0:00:36]} 28... cxd4 {[%clk 0:02:26.7]} 29. exd4
{[%clk 0:00:34.6]} 29... Bb4 {[%clk 0:02:26.8]} 30. Rc6 {[%clk 0:00:30.6]} 30...
Bxa5 {[%clk 0:02:26.9]} 31. Rxa6 {[%clk 0:00:31.3]} 31... Bc3 {[%clk 0:02:23.8]}
32. Rc6 {[%clk 0:00:26.3]} 32... Bb2 {[%clk 0:02:20]} 33. Rd3 {[%clk 0:00:23.9]}
33... Rb4 {[%clk 0:02:18.2]} 34. Rc2 {[%clk 0:00:21.1]} 34... Bxd4 {[%clk
0:02:15.8]} 35. Rcd2 {[%clk 0:00:21]} 35... Bb6 {[%clk 0:02:12]} 36. Rxd5 {[%clk
0:00:20.9]} 36... Rxd5 {[%clk 0:02:12.9]} 37. Rxd5 {[%clk 0:00:21.4]} 37... Rxb3
{[%clk 0:02:13.5]} 38. Rd2 {[%clk 0:00:20]} 38... Rb1 {[%clk 0:02:13.8]} 39. g3
{[%clk 0:00:19.3]} 39... g6 {[%clk 0:02:12.7]} 40. Kg2 {[%clk 0:00:19.7]} 40...
Kg7 {[%clk 0:02:12.9]} 41. h4 {[%clk 0:00:20.2]} 41... Rb4 {[%clk 0:02:10.8]}
42. Be2 {[%clk 0:00:20.4]} 42... Bd4 {[%clk 0:02:09.1]} 43. Bf3 {[%clk
0:00:20.6]} 43... Kf6 {[%clk 0:02:09.1]} 44. Re2 {[%clk 0:00:21.2]} 44... Rb6
{[%clk 0:02:08.1]} 45. Rd2 {[%clk 0:00:21.6]} 45... Be5 {[%clk 0:02:07.5]} 46.
Re2 {[%clk 0:00:22.5]} 46... Rd6 {[%clk 0:02:06.2]} 47. Re3 {[%clk 0:00:21.6]}
47... Rd2 {[%clk 0:02:06]} 48. Re2 {[%clk 0:00:22.5]} 48... Rd3 {[%clk
0:02:06.2]} 49. Re3 {[%clk 0:00:22.7]} 49... Rd6 {[%clk 0:02:04.2]} 50. Re2
{[%clk 0:00:23]} 50... Bd4 {[%clk 0:02:04.2]} 51. h5 {[%clk 0:00:23.1]} 51... g5
{[%clk 0:02:03.6]} 52. g4 {[%clk 0:00:23]} 52... Be5 {[%clk 0:02:02.4]} 53. Be4
{[%clk 0:00:23.1]} 53... Rd1 {[%clk 0:02:00.4]} 54. Bf5 {[%clk 0:00:23.2]} 54...
Rd6 {[%clk 0:01:58.8]} 55. Rc2 {[%clk 0:00:23.2]} 55... Bf4 {[%clk 0:01:56.5]}
56. Re2 {[%clk 0:00:23]} 56... Kg7 {[%clk 0:01:56.4]} 57. Ra2 {[%clk 0:00:22.9]}
57... Rb6 {[%clk 0:01:55.1]} 58. Rc2 {[%clk 0:00:22.9]} 58... Be5 {[%clk
0:01:54.5]} 59. Be4 {[%clk 0:00:23.1]} 59... Bd4 {[%clk 0:01:53.9]} 60. Re2
{[%clk 0:00:22.3]} 60... Rb4 {[%clk 0:01:52.5]} 61. Bf5 {[%clk 0:00:21.9]} 61...
Kf6 {[%clk 0:01:52.4]} 62. Kf3 {[%clk 0:00:20.6]} 62... Rb3+ {[%clk 0:01:50.2]}
63. Kg2 {[%clk 0:00:20.8]} 63... Be5 {[%clk 0:01:50.6]} 64. Rc2 {[%clk
0:00:20.3]} 64... Bd4 {[%clk 0:01:50]} 65. Re2 {[%clk 0:00:20.4]} 65... Ra3
{[%clk 0:01:49]} 66. Be4 {[%clk 0:00:18.6]} 66... Be5 {[%clk 0:01:45.7]} 67. Bf5
{[%clk 0:00:19]} 67... Ra4 {[%clk 0:01:43.5]} 68. Rc2 {[%clk 0:00:19.6]} 68...
Ra6 {[%clk 0:01:39.8]} 69. Re2 {[%clk 0:00:18.9]} 69... Rb6 {[%clk 0:01:39.5]}
70. Rc2 {[%clk 0:00:19]} 70... Rd6 {[%clk 0:01:39.2]} 71. Be4 {[%clk 0:00:19.2]}
71... Bd4 {[%clk 0:01:38.6]} 72. Rc6 {[%clk 0:00:18.9]} 72... Ke5 {[%clk
0:01:35.2]} 73. Rxd6 {[%clk 0:00:18.8]} 73... Kxd6 {[%clk 0:01:36.1]} 74. f3
{[%clk 0:00:19.1]} 74... Ke5 {[%clk 0:01:36.4]} 75. Bf5 {[%clk 0:00:19.4]} 75...
Kf4 {[%clk 0:01:36.8]} 76. Be4 {[%clk 0:00:20]} 76... Be5 {[%clk 0:01:37.1]} 77.
Bf5 {[%clk 0:00:20.5]} 77... Ke3 {[%clk 0:01:36.7]} 78. Be4 {[%clk 0:00:21.4]}
78... Bf4 {[%clk 0:01:37]} 79. Bf5 {[%clk 0:00:22.3]} 79... Ke2 {[%clk
0:01:36.6]} 80. Be4 {[%clk 0:00:23.2]} 80... Ke3 {[%clk 0:01:36.9]} 81. Bf5
{[%clk 0:00:24.1]} 81... Kd4 {[%clk 0:01:37.3]} 82. Be4 {[%clk 0:00:25]} 82...
Ke5 {[%clk 0:01:37.7]} 83. Bf5 {[%clk 0:00:25.9]} 83... Kf6 {[%clk 0:01:37.9]}
84. Be4 {[%clk 0:00:26.8]} 84... Be5 {[%clk 0:01:38.2]} 85. Bf5 {[%clk
0:00:27.7]} 85... Bd6 {[%clk 0:01:38.8]} 86. Be4 {[%clk 0:00:28.6]} 86... Bc5
{[%clk 0:01:39.1]} 87. Bf5 {[%clk 0:00:29.5]} 87... Bb6 {[%clk 0:01:39.6]} 88.
Be4 {[%clk 0:00:30.4]} 88... Ba7 {[%clk 0:01:40]} 89. Bf5 {[%clk 0:00:31.3]}
89... Bb8 {[%clk 0:01:40.3]} 90. Kf1 {[%clk 0:00:31.7]} 90... Ke7 {[%clk
0:01:40.5]} 91. Ke2 {[%clk 0:00:32.2]} 91... Kd6 {[%clk 0:01:41]} 92. Ke3 {[%clk
0:00:32.7]} 92... Ke5 {[%clk 0:01:41.5]} 93. Be4 {[%clk 0:00:32.4]} 93... Ba7+
{[%clk 0:01:41.9]} 94. Ke2 {[%clk 0:00:33]} 94... Bb6 {[%clk 0:01:42.1]} 95. Bf5
{[%clk 0:00:33.7]} 95... Kf4 {[%clk 0:01:42.4]} 96. Be4 {[%clk 0:00:34.6]} 96...
Bc5 {[%clk 0:01:42.1]} 97. Bf5 {[%clk 0:00:35.1]} 97... Bd4 {[%clk 0:01:42.2]}
98. Be4 {[%clk 0:00:36]} 98... Be5 {[%clk 0:01:42.4]} 99. Bf5 {[%clk 0:00:36.5]}
99... f6 {[%clk 0:01:42.4]} 100. Be4 {[%clk 0:00:36.8]} 100... Kg3 {[%clk
0:01:42.7]} 101. Bf5 {[%clk 0:00:37.7]} 101... Kf4 {[%clk 0:01:42.2]} 102. Be4
{[%clk 0:00:37.8]} 102... Bd6 {[%clk 0:01:42.7]} 103. Bf5 {[%clk 0:00:38.7]}
103... Ke5 {[%clk 0:01:43]} 104. Be4 {[%clk 0:00:39.6]} 104... Kd4 {[%clk
0:01:43.3]} 105. Bf5 {[%clk 0:00:40.5]} 105... Kc3 {[%clk 0:01:43.7]} 106. Be4
{[%clk 0:00:41.1]} 106... Bf4 {[%clk 0:01:44.2]} 107. Bf5 {[%clk 0:00:42]}
107... Kd4 {[%clk 0:01:43.4]} 108. Be4 {[%clk 0:00:42.9]} 108... Kc5 {[%clk
0:01:43.6]} 109. Bf5 {[%clk 0:00:43.8]} 109... Kd6 {[%clk 0:01:43.9]} 110. Be4
{[%clk 0:00:44.7]} 110... Be5 {[%clk 0:01:44.2]} 111. Bf5 {[%clk 0:00:45.6]}
111... Ke7 {[%clk 0:01:44.6]} 112. Be4 {[%clk 0:00:46.5]} 112... Bd4 {[%clk
0:01:44.8]} 113. Bf5 {[%clk 0:00:47.4]} 113... Bc5 {[%clk 0:01:45.3]} 114. Be4
{[%clk 0:00:48.3]} 114... Bb6 {[%clk 0:01:45.8]} 115. Bf5 {[%clk 0:00:49.2]}
115... Ba7 {[%clk 0:01:46.4]} 116. Kd3 {[%clk 0:00:50.1]} 116... Bb8 {[%clk
0:01:46.9]} 117. Ke4 {[%clk 0:00:51]} 117... Bf4 {[%clk 0:01:47]} 118. Kd5
{[%clk 0:00:51.9]} 118... Be5 {[%clk 0:01:47.3]} 119. Kc6 {[%clk 0:00:52.3]}
119... Bg3 {[%clk 0:01:47.1]} 120. Kd5 {[%clk 0:00:52.7]} 120... Bh2 {[%clk
0:01:47.5]} 121. Bd3 {[%clk 0:00:53]} 121... Bg1 {[%clk 0:01:47.7]} 122. Ke4
{[%clk 0:00:53.3]} 122... Bf2 {[%clk 0:01:48.2]} 123. Kf5 {[%clk 0:00:53.8]}
123... Kf7 {[%clk 0:01:47.5]} 124. Bc4+ {[%clk 0:00:52.8]} 124... Kg7 {[%clk
0:01:47.9]} 125. Ke6 {[%clk 0:00:52.4]} 125... Be3 {[%clk 0:01:48]} 126. Bd3
{[%clk 0:00:52.8]} 126... Bd4 {[%clk 0:01:48.3]} 127. Bf5 {[%clk 0:00:53.6]}
127... Bc3 {[%clk 0:01:48.5]} 128. Ke7 {[%clk 0:00:54.5]} 128... Bb4+ {[%clk
0:01:47.9]} 129. Ke8 {[%clk 0:00:55.4]} 129... Ba3 {[%clk 0:01:48.1]} 130. Kd7
{[%clk 0:00:56.3]} 130... Bc5 {[%clk 0:01:47.9]} 131. Ke6 {[%clk 0:00:57.2]}
131... Bf8 {[%clk 0:01:48]} 132. Kd7 {[%clk 0:00:58.1]} 132... Bc5 {[%clk
0:01:47.8]} 133. Ke8 {[%clk 0:00:59]} 133... Bd4 {[%clk 0:01:48.2]} 134. Ke7
{[%clk 0:00:58.9]} 134... Be3 {[%clk 0:01:48.6]} 135. Ke6 {[%clk 0:00:59.8]}
135... Bf2 {[%clk 0:01:48.9]} 136. Ke7 {[%clk 0:01:00.7]} 136... Bg3 {[%clk
0:01:49.2]} 137. Ke6 {[%clk 0:01:01.6]} 137... Bh4 {[%clk 0:01:49.7]} 138. Ke7
{[%clk 0:01:02]} 138... Bf2 {[%clk 0:01:49.9]} 139. Ke6 {[%clk 0:01:02.7]}
139... Bg1 {[%clk 0:01:50.3]} 140. Kd5 {[%clk 0:01:03.3]} 140... Ba7 {[%clk
0:01:50]} 141. Ke4 {[%clk 0:01:04.2]} 141... Bb8 {[%clk 0:01:50.2]} 142. Kd3
{[%clk 0:01:05.1]} 142... Kf8 {[%clk 0:01:49.9]} 143. Ke2 {[%clk 0:01:06]}
143... Ke8 {[%clk 0:01:50.4]} 144. Kd3 {[%clk 0:01:06.9]} 144... Ke7 {[%clk
0:01:50.8]} 145. Kc4 {[%clk 0:01:07.8]} 145... Kd6 {[%clk 0:01:51.2]} 146. Kd4
{[%clk 0:01:07.7]} 146... Ba7+ {[%clk 0:01:51.1]} 147. Ke4 {[%clk 0:01:08.6]}
147... Bc5 {[%clk 0:01:50.6]} 148. Bc8 {[%clk 0:01:09]} 148... Ke7 {[%clk
0:01:47.9]} 149. Ba6 {[%clk 0:01:08.3]} 149... Kf7 {[%clk 0:01:44.8]} 1/2-1/2

[Event "Late-Titled-Tuesday-Blitz-November-28-2023"]
[Site "Chess.com"]
[Date "2023.11.28"]
[Round "6"]
[White "Hirna2005"]
[Black "GlavkonVVS"]
[Result "1/2-1/2"]
[WhiteElo "2344"]
[BlackElo "2498"]
[TimeControl "180+1"]
[EndTime "15:06:33 PST"]
[Termination "Game drawn by stalemate"]

1. e4 {[%clk 0:03:00.9]} 1... Nf6 {[%clk 0:02:57]} 2. e5 {[%clk 0:03:00.8]} 2...
Nd5 {[%clk 0:02:56.6]} 3. Nf3 {[%clk 0:03:01.4]} 3... d6 {[%clk 0:02:56.5]} 4.
d4 {[%clk 0:03:01.1]} 4... Bg4 {[%clk 0:02:56]} 5. Be2 {[%clk 0:03:00.9]} 5...
e6 {[%clk 0:02:56.1]} 6. O-O {[%clk 0:03:00.4]} 6... Be7 {[%clk 0:02:56.2]} 7.
c4 {[%clk 0:02:59.4]} 7... Nb6 {[%clk 0:02:56.2]} 8. exd6 {[%clk 0:02:59.8]}
8... cxd6 {[%clk 0:02:56.3]} 9. b3 {[%clk 0:02:59.6]} 9... O-O {[%clk
0:02:55.6]} 10. Nc3 {[%clk 0:02:59.5]} 10... d5 {[%clk 0:02:56]} 11. c5 {[%clk
0:02:59.2]} 11... Bxf3 {[%clk 0:02:55]} 12. Bxf3 {[%clk 0:02:56.7]} 12... Nc8
{[%clk 0:02:55.5]} 13. Bf4 {[%clk 0:02:54.4]} 13... Nc6 {[%clk 0:02:55.9]} 14.
Qd2 {[%clk 0:02:51.7]} 14... Bf6 {[%clk 0:02:56.1]} 15. Ne2 {[%clk 0:02:48.5]}
15... N8e7 {[%clk 0:02:56]} 16. b4 {[%clk 0:02:41.9]} 16... Nf5 {[%clk
0:02:55.2]} 17. Be3 {[%clk 0:02:38.1]} 17... Re8 {[%clk 0:02:49.3]} 18. b5
{[%clk 0:02:36.9]} 18... Na5 {[%clk 0:02:49.3]} 19. Ng3 {[%clk 0:02:21.2]} 19...
Nc4 {[%clk 0:02:47.9]} 20. Qd3 {[%clk 0:02:20.1]} 20... Ncxe3 {[%clk 0:02:25.9]}
21. fxe3 {[%clk 0:02:20.1]} 21... Nxg3 {[%clk 0:02:26.1]} 22. hxg3 {[%clk
0:02:20.9]} 22... g6 {[%clk 0:02:13.6]} 23. Kf2 {[%clk 0:02:17.8]} 23... Bg7
{[%clk 0:02:13]} 24. Rh1 {[%clk 0:02:16]} 24... Qg5 {[%clk 0:02:12.4]} 25. Rh4
{[%clk 0:02:13]} 25... h5 {[%clk 0:02:08]} 26. c6 {[%clk 0:02:01.9]} 26... bxc6
{[%clk 0:02:07]} 27. bxc6 {[%clk 0:02:02]} 27... Rab8 {[%clk 0:02:05.7]} 28. Rc1
{[%clk 0:01:56.9]} 28... Rb2+ {[%clk 0:02:03.1]} 29. Rc2 {[%clk 0:01:57.3]}
29... Rxc2+ {[%clk 0:01:58.2]} 30. Qxc2 {[%clk 0:01:57.5]} 30... Rc8 {[%clk
0:01:57]} 31. Be2 {[%clk 0:01:46.1]} 31... Rc7 {[%clk 0:01:51.5]} 32. Ba6 {[%clk
0:01:44.4]} 32... Bf8 {[%clk 0:01:50.3]} 33. Rf4 {[%clk 0:01:35.9]} 33... Bd6
{[%clk 0:01:50.1]} 34. Rf3 {[%clk 0:01:36.2]} 34... h4 {[%clk 0:01:33.9]} 35.
gxh4 {[%clk 0:01:35.2]} 35... Qxh4+ {[%clk 0:01:33.9]} 36. Ke2 {[%clk
0:01:35.5]} 36... Qg4 {[%clk 0:01:30.2]} 37. Kf1 {[%clk 0:01:25.5]} 37... Qe4
{[%clk 0:01:21.6]} 38. Bd3 {[%clk 0:01:14.8]} 38... Qh4 {[%clk 0:01:19.4]} 39.
Rh3 {[%clk 0:01:08.3]} 39... Qf6+ {[%clk 0:01:18.8]} 40. Rf3 {[%clk 0:01:08.3]}
40... Qg5 {[%clk 0:01:17.3]} 41. Bb5 {[%clk 0:01:05.2]} 41... Kg7 {[%clk
0:01:12.8]} 42. Qf2 {[%clk 0:01:00.2]} 42... f5 {[%clk 0:01:10.2]} 43. Qd2
{[%clk 0:00:50.5]} 43... Rc8 {[%clk 0:01:04.4]} 44. Qa5 {[%clk 0:00:48.9]} 44...
Qe7 {[%clk 0:01:02.2]} 45. Qa6 {[%clk 0:00:45.8]} 45... Rh8 {[%clk 0:01:01]} 46.
Qb7 {[%clk 0:00:46]} 46... Rh1+ {[%clk 0:00:56.9]} 47. Ke2 {[%clk 0:00:46.2]}
47... Bc7 {[%clk 0:00:54.1]} 48. Qc8 {[%clk 0:00:41.2]} 48... Rb1 {[%clk
0:00:51.3]} 49. a4 {[%clk 0:00:36.6]} 49... Rb2+ {[%clk 0:00:50.7]} 50. Kf1
{[%clk 0:00:35.1]} 50... Bd8 {[%clk 0:00:36.4]} 51. Qd7 {[%clk 0:00:33]} 51...
Qxd7 {[%clk 0:00:35.5]} 52. cxd7 {[%clk 0:00:33]} 52... Kf6 {[%clk 0:00:35.7]}
53. Rh3 {[%clk 0:00:29.8]} 53... Rb1+ {[%clk 0:00:35.3]} 54. Ke2 {[%clk
0:00:29.5]} 54... Rb2+ {[%clk 0:00:34.8]} 55. Kf3 {[%clk 0:00:29.5]} 55... g5
{[%clk 0:00:31.5]} 56. Rh6+ {[%clk 0:00:29.2]} 56... Ke7 {[%clk 0:00:31.2]} 57.
Rh7+ {[%clk 0:00:27.6]} 57... Kd6 {[%clk 0:00:30.6]} 58. Rh8 {[%clk 0:00:26.4]}
58... g4+ {[%clk 0:00:29]} 59. Kg3 {[%clk 0:00:24.1]} 59... Kc7 {[%clk 0:00:28]}
60. Re8 {[%clk 0:00:20.8]} 60... a6 {[%clk 0:00:25.6]} 61. Bxa6 {[%clk
0:00:05.4]} 61... Kxd7 {[%clk 0:00:25.6]} 62. Rg8 {[%clk 0:00:05.4]} 62... Bc7+
{[%clk 0:00:24.8]} 63. Kh4 {[%clk 0:00:05.7]} 63... Rxg2 {[%clk 0:00:23.9]} 64.
Bb5+ {[%clk 0:00:05.6]} 64... Kd6 {[%clk 0:00:23.6]} 65. Rg7 {[%clk 0:00:04.9]}
65... e5 {[%clk 0:00:20.6]} 66. Rd7+ {[%clk 0:00:04.4]} 66... Ke6 {[%clk
0:00:21.1]} 67. Rxc7 {[%clk 0:00:04.6]} 67... exd4 {[%clk 0:00:21.3]} 68. exd4
{[%clk 0:00:04.8]} 68... f4 {[%clk 0:00:21.3]} 69. Rc6+ {[%clk 0:00:03.3]} 69...
Kf5 {[%clk 0:00:20.8]} 70. Rc5 {[%clk 0:00:03]} 70... Ke4 {[%clk 0:00:20.6]} 71.
Kg5 {[%clk 0:00:02.5]} 71... f3 {[%clk 0:00:20.3]} 72. Bc6 {[%clk 0:00:02.6]}
72... Kxd4 {[%clk 0:00:17.4]} 73. Rxd5+ {[%clk 0:00:02.7]} 73... Kc4 {[%clk
0:00:17.6]} 74. Rf5 {[%clk 0:00:03]} 74... f2 {[%clk 0:00:16.3]} 75. Bxg2 {[%clk
0:00:02.2]} 75... g3 {[%clk 0:00:15.8]} 76. Kg4 {[%clk 0:00:02.3]} 76... Kd3
{[%clk 0:00:16]} 77. Kxg3 {[%clk 0:00:02.7]} 77... f1=Q {[%clk 0:00:16.8]} 78.
Rxf1 {[%clk 0:00:03]} 78... Kd4 {[%clk 0:00:17.7]} 79. Rd1+ {[%clk 0:00:03.3]}
79... Kc5 {[%clk 0:00:18.6]} 80. Kf2 {[%clk 0:00:03.8]} 80... Kb6 {[%clk
0:00:19.5]} 81. Ke3 {[%clk 0:00:04.5]} 81... Ka5 {[%clk 0:00:20.4]} 82. Ke4
{[%clk 0:00:05.3]} 82... Kb4 {[%clk 0:00:21.1]} 83. Ke5 {[%clk 0:00:06.2]} 83...
Kxa4 {[%clk 0:00:21.7]} 84. Ke6 {[%clk 0:00:06.9]} 84... Kb5 {[%clk 0:00:22.6]}
85. Ke7 {[%clk 0:00:07.7]} 85... Kc4 {[%clk 0:00:23]} 86. Rd2 {[%clk 0:00:08.3]}
86... Kc3 {[%clk 0:00:23.9]} 87. Rd5 {[%clk 0:00:08.8]} 87... Kc4 {[%clk
0:00:24.8]} 88. Ke6 {[%clk 0:00:09.4]} 88... Kb4 {[%clk 0:00:25.6]} 89. Kd6
{[%clk 0:00:10]} 89... Kc3 {[%clk 0:00:26.3]} 90. Rc5+ {[%clk 0:00:10.4]} 90...
Kd4 {[%clk 0:00:26.4]} 91. Kc6 {[%clk 0:00:10.7]} 91... Ke3 {[%clk 0:00:27.3]}
92. Rd5 {[%clk 0:00:10.7]} 92... Ke2 {[%clk 0:00:27.3]} 93. Kc5 {[%clk 0:00:11]}
93... Ke3 {[%clk 0:00:28.2]} 94. Rd4 {[%clk 0:00:10.8]} 94... Kf2 {[%clk
0:00:29.1]} 95. Kd5 {[%clk 0:00:10.8]} 95... Kg3 {[%clk 0:00:30]} 96. Rd3+
{[%clk 0:00:11]} 96... Kf2 {[%clk 0:00:30.9]} 97. Ke4 {[%clk 0:00:11.3]} 97...
Ke1 {[%clk 0:00:31.8]} 98. Ke3 {[%clk 0:00:11.5]} 1/2-1/2